[Event "Titled Tuesday Blitz June 22 2021"]
[White "Klenburg, Michael"]
[Black "Spata, German"]
[WhiteFideId "14102072"]
[BlackFideId "113026"]
[WhiteElo "2359"]
[BlackElo "2238"]
[Result "1/2-1/2"]
[Round "05"]
[TimeControl "180+1"]
[Date "2021.06.22"]
[WhiteClock "0:00:46"]
[BlackClock "0:00:16"]

1. c4 {[%clk 0:03:00]}  c5 {[%clk 0:02:55]} 2. Nc3 {[%clk 0:03:01]}  g6 {[%clk 0:02:54]} 3. Nf3 {[%clk 0:02:53]}  Bg7 {[%clk 0:02:54]} 4. g3 {[%clk 0:02:52]}  Nc6 {[%clk 0:02:52]} 5. Bg2 {[%clk 0:02:52]}  e5 {[%clk 0:02:47]} 6. d3 {[%clk 0:02:50]}  Nge7 {[%clk 0:02:45]} 7. a3 {[%clk 0:02:44]}  a5 {[%clk 0:02:39]} 8. Qd2 {[%clk 0:02:34]}  O-O {[%clk 0:02:30]} 9. b3 {[%clk 0:02:34]}  d6 {[%clk 0:02:24]} 10. Bb2 {[%clk 0:02:33]}  Bg4 {[%clk 0:02:15]} 11. h3 {[%clk 0:02:32]}  Bxf3 {[%clk 0:02:13]} 12. Bxf3 {[%clk 0:02:29]}  Nd4 {[%clk 0:02:13]} 13. Qd1 {[%clk 0:02:15]}  Nxf3+ {[%clk 0:02:03]} 14. exf3 {[%clk 0:02:16]}  d5 {[%clk 0:01:57]} 15. O-O {[%clk 0:02:12]}  Qd7 {[%clk 0:01:57]} 16. Kg2 {[%clk 0:02:12]}  Rfd8 {[%clk 0:01:53]} 17. Qe2 {[%clk 0:02:06]}  Qc6 {[%clk 0:01:37]} 18. Rfe1 {[%clk 0:02:00]}  f6 {[%clk 0:01:32]} 19. Kh2 {[%clk 0:01:52]}  Rd7 {[%clk 0:01:30]} 20. Rad1 {[%clk 0:01:49]}  Rad8 {[%clk 0:01:30]} 21. Ba1 {[%clk 0:01:39]}  Bh8 {[%clk 0:01:10]} 22. Bb2 {[%clk 0:01:38]}  Bg7 {[%clk 0:01:10]} 23. Ba1 {[%clk 0:01:37]}  b6 {[%clk 0:01:10]} 24. Bb2 {[%clk 0:01:36]}  d4 {[%clk 0:01:02]} 25. Nb5 {[%clk 0:01:19]}  Nc8 {[%clk 0:00:50]} 26. Bc1 {[%clk 0:01:16]}  Nd6 {[%clk 0:00:48]} 27. a4 {[%clk 0:01:11]}  Nxb5 {[%clk 0:00:47]} 28. axb5 {[%clk 0:01:10]}  Qa8 {[%clk 0:00:44]} 29. f4 {[%clk 0:01:08]}  Re7 {[%clk 0:00:34]} 30. Qe4 {[%clk 0:01:08]}  Qxe4 {[%clk 0:00:29]} 31. Rxe4 {[%clk 0:01:08]}  f5 {[%clk 0:00:24]} 32. Re2 {[%clk 0:01:08]}  e4 {[%clk 0:00:23]} 33. Rde1 {[%clk 0:01:06]}  Rde8 {[%clk 0:00:23]} 34. Kg2 {[%clk 0:01:05]}  Kf7 {[%clk 0:00:23]} 35. Bd2 {[%clk 0:01:03]}  exd3 {[%clk 0:00:18]} 36. Rxe7+ {[%clk 0:01:02]}  Rxe7 {[%clk 0:00:19]} 37. Rxe7+ {[%clk 0:01:01]}  Kxe7 {[%clk 0:00:20]} 38. h4 {[%clk 0:00:47]}  Ke6 {[%clk 0:00:17]} 39. Kf3 {[%clk 0:00:47]}  h5 {[%clk 0:00:16]} 40. Kg2 {[%clk 0:00:46]}  Bf6 {[%clk 0:00:16]} 41. Kf3 {[%clk 0:00:47]}  Be7 {[%clk 0:00:16]} 42. Kg2 {[%clk 0:00:46]}  Bd6 {[%clk 0:00:17]} 43. Kf3 {[%clk 0:00:47]}  Bc7 {[%clk 0:00:17]} 44. Kg2 {[%clk 0:00:46]}  Bd6 {[%clk 0:00:16]} 45. Kf3 {[%clk 0:00:47]}  Bc7 {[%clk 0:00:16]} 46. Kg2 {[%clk 0:00:46]}  Bd6 {[%clk 0:00:16]} 1/2-1/2


[Site "https://www.chess.com"]

[Event "Titled Tuesday Blitz June 22 2021"]
[White "Korobov, Anton"]
[Black "Dang, Hoang Son"]
[WhiteFideId "14105730"]
[BlackFideId "12402435"]
[WhiteElo "2668"]
[BlackElo "2248"]
[Result "1-0"]
[Round "05"]
[TimeControl "180+1"]
[Date "2021.06.22"]
[WhiteClock "0:00:33"]
[BlackClock "0:00:18"]

1. d4 {[%clk 0:03:00]}  Nf6 {[%clk 0:03:00]} 2. c4 {[%clk 0:03:00]}  g6 {[%clk 0:03:00]} 3. Nc3 {[%clk 0:03:01]}  Bg7 {[%clk 0:03:01]} 4. e4 {[%clk 0:03:00]}  O-O {[%clk 0:03:02]} 5. Bg5 {[%clk 0:03:00]}  d6 {[%clk 0:03:02]} 6. Be2 {[%clk 0:03:00]}  c5 {[%clk 0:02:59]} 7. d5 {[%clk 0:03:00]}  Qb6 {[%clk 0:02:56]} 8. Qd2 {[%clk 0:02:54]}  e6 {[%clk 0:02:46]} 9. f3 {[%clk 0:02:36]}  exd5 {[%clk 0:02:42]} 10. cxd5 {[%clk 0:02:37]}  Re8 {[%clk 0:02:10]} 11. Nh3 {[%clk 0:02:27]}  Bxh3 {[%clk 0:02:09]} 12. gxh3 {[%clk 0:02:28]}  Nbd7 {[%clk 0:02:09]} 13. O-O {[%clk 0:02:27]}  a6 {[%clk 0:02:04]} 14. Kh1 {[%clk 0:02:23]}  Rac8 {[%clk 0:01:48]} 15. b3 {[%clk 0:02:08]}  Nh5 {[%clk 0:01:39]} 16. Rac1 {[%clk 0:02:01]}  Qb4 {[%clk 0:01:33]} 17. Nb1 {[%clk 0:01:54]}  b5 {[%clk 0:01:28]} 18. Qxb4 {[%clk 0:01:46]}  cxb4 {[%clk 0:01:29]} 19. Rc6 {[%clk 0:01:46]}  Rxc6 {[%clk 0:00:51]} 20. dxc6 {[%clk 0:01:47]}  Nc5 {[%clk 0:00:51]} 21. Rd1 {[%clk 0:01:05]}  Be5 {[%clk 0:00:51]} 22. Bd2 {[%clk 0:00:52]}  Nf4 {[%clk 0:00:46]} 23. Bf1 {[%clk 0:00:52]}  Rc8 {[%clk 0:00:37]} 24. Bxb4 {[%clk 0:00:51]}  Rxc6 {[%clk 0:00:38]} 25. Rc1 {[%clk 0:00:51]}  Bb2 {[%clk 0:00:38]} 26. Rc2 {[%clk 0:00:50]}  Bd4 {[%clk 0:00:38]} 27. Bd2 {[%clk 0:00:46]}  Nfe6 {[%clk 0:00:37]} 28. b4 {[%clk 0:00:47]}  Kg7 {[%clk 0:00:27]} 29. bxc5 {[%clk 0:00:45]}  dxc5 {[%clk 0:00:28]} 30. Nc3 {[%clk 0:00:45]}  Rd6 {[%clk 0:00:27]} 31. Nd5 {[%clk 0:00:42]}  f5 {[%clk 0:00:27]} 32. a4 {[%clk 0:00:41]}  b4 {[%clk 0:00:27]} 33. Bc4 {[%clk 0:00:40]}  fxe4 {[%clk 0:00:27]} 34. fxe4 {[%clk 0:00:41]}  Nd8 {[%clk 0:00:28]} 35. Bf4 {[%clk 0:00:40]}  Rd7 {[%clk 0:00:29]} 36. Re2 {[%clk 0:00:38]}  Ne6 {[%clk 0:00:27]} 37. Bg3 {[%clk 0:00:37]}  a5 {[%clk 0:00:28]} 38. Kg2 {[%clk 0:00:37]}  h5 {[%clk 0:00:28]} 39. h4 {[%clk 0:00:36]}  g5 {[%clk 0:00:28]} 40. Nb6 {[%clk 0:00:35]}  Re7 {[%clk 0:00:27]} 41. Nc8 {[%clk 0:00:35]}  Re8 {[%clk 0:00:26]} 42. Nd6 {[%clk 0:00:35]}  Rd8 {[%clk 0:00:19]} 43. Nf5+ {[%clk 0:00:34]}  Kf6 {[%clk 0:00:19]} 44. hxg5+ {[%clk 0:00:33]}  Nxg5 {[%clk 0:00:19]} 45. Bh4 {[%clk 0:00:33]}  Be5 {[%clk 0:00:18]} 46. Rf2 {[%clk 0:00:31]}  Kg6 {[%clk 0:00:18]} 47. Ne7+ {[%clk 0:00:32]}  Kh6 {[%clk 0:00:18]} 48. Bxg5+ {[%clk 0:00:31]}  Kxg5 {[%clk 0:00:18]} 49. Rf5+ {[%clk 0:00:32]}  Kg4 {[%clk 0:00:19]} 50. h3+ {[%clk 0:00:32]}  Kh4 {[%clk 0:00:18]} 51. Ng6# {[%clk 0:00:33]} 1-0


[Site "https://www.chess.com"]

[Event "Titled Tuesday Blitz June 22 2021"]
[White "Kostiukov, Alexandr"]
[Black "Jarovinsky, Alexey"]
[WhiteFideId "14108100"]
[BlackFideId "14115131"]
[WhiteElo "2240"]
[BlackElo "2446"]
[Result "1/2-1/2"]
[Round "05"]
[TimeControl "180+1"]
[Date "2021.06.22"]
[WhiteClock "0:00:19"]
[BlackClock "0:00:06"]

1. g3 {[%clk 0:02:51]}  Nc6 {[%clk 0:03:00]} 2. Bg2 {[%clk 0:02:47]}  h5 {[%clk 0:03:00]} 3. Nf3 {[%clk 0:02:45]}  e5 {[%clk 0:02:59]} 4. e4 {[%clk 0:02:43]}  Bc5 {[%clk 0:02:52]} 5. O-O {[%clk 0:02:32]}  d6 {[%clk 0:02:51]} 6. c3 {[%clk 0:02:31]}  Bg4 {[%clk 0:02:44]} 7. h3 {[%clk 0:02:30]}  Bxf3 {[%clk 0:02:43]} 8. Qxf3 {[%clk 0:02:28]}  h4 {[%clk 0:02:33]} 9. g4 {[%clk 0:02:27]}  Nge7 {[%clk 0:02:30]} 10. d3 {[%clk 0:02:26]}  Ng6 {[%clk 0:02:29]} 11. b4 {[%clk 0:02:24]}  Bb6 {[%clk 0:02:29]} 12. a4 {[%clk 0:02:23]}  a5 {[%clk 0:02:22]} 13. b5 {[%clk 0:02:23]}  Nb8 {[%clk 0:02:22]} 14. Na3 {[%clk 0:02:23]}  Nd7 {[%clk 0:02:21]} 15. Nc4 {[%clk 0:02:23]}  Bc5 {[%clk 0:02:17]} 16. Be3 {[%clk 0:02:22]}  Bxe3 {[%clk 0:02:09]} 17. fxe3 {[%clk 0:02:21]}  O-O {[%clk 0:02:07]} 18. d4 {[%clk 0:02:15]}  b6 {[%clk 0:02:04]} 19. Qf5 {[%clk 0:02:04]}  Qe7 {[%clk 0:01:59]} 20. Rf2 {[%clk 0:01:56]}  Rae8 {[%clk 0:01:52]} 21. Raf1 {[%clk 0:01:49]}  Qe6 {[%clk 0:01:51]} 22. Qxe6 {[%clk 0:01:43]}  Rxe6 {[%clk 0:01:49]} 23. Nd2 {[%clk 0:01:37]}  Nf6 {[%clk 0:01:45]} 24. Bf3 {[%clk 0:01:28]}  Nh7 {[%clk 0:01:42]} 25. Bg2 {[%clk 0:01:20]}  Ng5 {[%clk 0:01:41]} 26. c4 {[%clk 0:01:19]}  exd4 {[%clk 0:01:34]} 27. exd4 {[%clk 0:01:19]}  Rfe8 {[%clk 0:01:32]} 28. c5 {[%clk 0:01:14]}  dxc5 {[%clk 0:01:26]} 29. Rf5 {[%clk 0:01:13]}  Nh7 {[%clk 0:00:57]} 30. Rxf7 {[%clk 0:01:01]}  cxd4 {[%clk 0:00:49]} 31. Rxc7 {[%clk 0:01:00]}  Ne5 {[%clk 0:00:40]} 32. Nc4 {[%clk 0:00:55]}  Rd8 {[%clk 0:00:26]} 33. Nxe5 {[%clk 0:00:48]}  Rxe5 {[%clk 0:00:27]} 34. Rc6 {[%clk 0:00:46]}  d3 {[%clk 0:00:21]} 35. Rxb6 {[%clk 0:00:40]}  d2 {[%clk 0:00:20]} 36. Rd1 {[%clk 0:00:40]}  Ng5 {[%clk 0:00:19]} 37. Rc6 {[%clk 0:00:30]}  Nxe4 {[%clk 0:00:18]} 38. Rc2 {[%clk 0:00:26]}  Rd4 {[%clk 0:00:14]} 39. Bxe4 {[%clk 0:00:24]}  Rexe4 {[%clk 0:00:14]} 40. Rdxd2 {[%clk 0:00:23]}  Rxa4 {[%clk 0:00:12]} 41. Rb2 {[%clk 0:00:22]}  Ra1+ {[%clk 0:00:09]} 42. Kf2 {[%clk 0:00:19]}  Rf4+ {[%clk 0:00:07]} 43. Ke3 {[%clk 0:00:19]}  Rf7 {[%clk 0:00:05]} 44. b6 {[%clk 0:00:19]}  Rb7 {[%clk 0:00:05]} 45. Kd4 {[%clk 0:00:19]}  a4 {[%clk 0:00:05]} 46. Kc5 {[%clk 0:00:19]}  a3 {[%clk 0:00:05]} 47. Ra2 {[%clk 0:00:19]}  Rc1+ {[%clk 0:00:05]} 48. Kb5 {[%clk 0:00:20]}  Rb1+ {[%clk 0:00:04]} 49. Kc5 {[%clk 0:00:20]}  R1xb6 {[%clk 0:00:04]} 50. Rxa3 {[%clk 0:00:20]}  Rb5+ {[%clk 0:00:05]} 51. Kc4 {[%clk 0:00:19]}  Rb4+ {[%clk 0:00:05]} 52. Kc5 {[%clk 0:00:19]}  Rb8 {[%clk 0:00:05]} 53. Rad3 {[%clk 0:00:18]}  R4b5+ {[%clk 0:00:05]} 54. Kc6 {[%clk 0:00:18]}  R5b6+ {[%clk 0:00:06]} 55. Kc5 {[%clk 0:00:18]}  Rb5+ {[%clk 0:00:06]} 56. Kc6 {[%clk 0:00:19]}  R5b6+ {[%clk 0:00:06]} 57. Kc5 {[%clk 0:00:19]}  Rb5+ {[%clk 0:00:06]} 1/2-1/2


[Site "https://www.chess.com"]

[Event "Titled Tuesday Blitz June 22 2021"]
[White "Lagunov, Evgenij"]
[Black "Rostovtsev, Dmitry"]
[WhiteFideId "4125363"]
[BlackFideId "34278320"]
[WhiteElo "2200"]
[BlackElo "2143"]
[Result "0-1"]
[Round "05"]
[TimeControl "180+1"]
[Date "2021.06.22"]
[WhiteClock "0:00:07"]
[BlackClock "0:00:15"]

1. e4 {[%clk 0:03:00]}  c5 {[%clk 0:02:52]} 2. Nf3 {[%clk 0:03:00]}  d6 {[%clk 0:02:49]} 3. d4 {[%clk 0:03:00]}  cxd4 {[%clk 0:02:50]} 4. Nxd4 {[%clk 0:03:00]}  Nf6 {[%clk 0:02:51]} 5. Nc3 {[%clk 0:03:00]}  Nc6 {[%clk 0:02:50]} 6. Be2 {[%clk 0:02:57]}  e5 {[%clk 0:02:47]} 7. Nf3 {[%clk 0:02:50]}  h6 {[%clk 0:02:42]} 8. h3 {[%clk 0:02:48]}  Be7 {[%clk 0:02:39]} 9. Be3 {[%clk 0:02:46]}  Be6 {[%clk 0:02:38]} 10. Qd2 {[%clk 0:02:38]}  Rc8 {[%clk 0:02:37]} 11. O-O-O {[%clk 0:02:37]}  Nb4 {[%clk 0:02:15]} 12. Bb5+ {[%clk 0:02:23]}  Kf8 {[%clk 0:02:13]} 13. Kb1 {[%clk 0:01:41]}  Nxe4 {[%clk 0:01:05]} 14. Nxe4 {[%clk 0:01:30]}  Bxa2+ {[%clk 0:01:05]} 15. Kc1 {[%clk 0:01:13]}  Rxc2+ {[%clk 0:00:56]} 16. Qxc2 {[%clk 0:01:13]}  Nxc2 {[%clk 0:00:57]} 17. Kxc2 {[%clk 0:01:14]}  d5 {[%clk 0:00:54]} 18. Nc3 {[%clk 0:01:06]}  Qc7 {[%clk 0:00:51]} 19. Ra1 {[%clk 0:00:45]}  Bc4 {[%clk 0:00:37]} 20. Bxc4 {[%clk 0:00:44]}  Qxc4 {[%clk 0:00:38]} 21. Rxa7 {[%clk 0:00:33]}  Qc7 {[%clk 0:00:33]} 22. Nxe5 {[%clk 0:00:26]}  Kg8 {[%clk 0:00:25]} 23. Ra8+ {[%clk 0:00:23]}  Kh7 {[%clk 0:00:24]} 24. Rxh8+ {[%clk 0:00:23]}  Kxh8 {[%clk 0:00:25]} 25. Bd4 {[%clk 0:00:20]}  Bf6 {[%clk 0:00:20]} 26. f4 {[%clk 0:00:20]}  b5 {[%clk 0:00:20]} 27. Kd2 {[%clk 0:00:15]}  Qb7 {[%clk 0:00:20]} 28. Ra1 {[%clk 0:00:13]}  b4 {[%clk 0:00:21]} 29. Ne2 {[%clk 0:00:13]}  Kh7 {[%clk 0:00:21]} 30. Ra7 {[%clk 0:00:12]}  Qb5 {[%clk 0:00:21]} 31. Rxf7 {[%clk 0:00:11]}  Qe8 {[%clk 0:00:18]} 32. Rb7 {[%clk 0:00:10]}  Qe6 {[%clk 0:00:17]} 33. g4 {[%clk 0:00:09]}  Qa6 {[%clk 0:00:15]} 34. Ng3 {[%clk 0:00:07]}  Qxb7 {[%clk 0:00:15]} 0-1


[Site "https://www.chess.com"]

[Event "Titled Tuesday Blitz June 22 2021"]
[White "Makhnev, Denis"]
[Black "Cardoso Cardoso, Jose Gabriel"]
[WhiteFideId "13707647"]
[BlackFideId "4430492"]
[WhiteElo "2549"]
[BlackElo "2343"]
[Result "1/2-1/2"]
[Round "05"]
[TimeControl "180+1"]
[Date "2021.06.22"]
[WhiteClock "0:00:24"]
[BlackClock "0:00:05"]

1. Nf3 {[%clk 0:03:00]}  Nf6 {[%clk 0:02:59]} 2. c4 {[%clk 0:02:59]}  e6 {[%clk 0:02:58]} 3. g3 {[%clk 0:02:58]}  d5 {[%clk 0:02:57]} 4. Bg2 {[%clk 0:02:58]}  dxc4 {[%clk 0:02:57]} 5. Qa4+ {[%clk 0:02:58]}  Nbd7 {[%clk 0:02:57]} 6. O-O {[%clk 0:02:56]}  a6 {[%clk 0:02:58]} 7. Qxc4 {[%clk 0:02:55]}  b5 {[%clk 0:02:58]} 8. Qc6 {[%clk 0:02:56]}  Rb8 {[%clk 0:02:58]} 9. a4 {[%clk 0:02:51]}  Bb7 {[%clk 0:02:58]} 10. Qc2 {[%clk 0:02:51]}  c5 {[%clk 0:02:58]} 11. axb5 {[%clk 0:02:51]}  axb5 {[%clk 0:02:59]} 12. Nc3 {[%clk 0:02:51]}  Be7 {[%clk 0:02:54]} 13. d3 {[%clk 0:02:49]}  Qb6 {[%clk 0:02:39]} 14. Bf4 {[%clk 0:02:49]}  Rc8 {[%clk 0:02:39]} 15. Qb3 {[%clk 0:02:49]}  Bc6 {[%clk 0:02:27]} 16. Ne5 {[%clk 0:02:48]}  Nxe5 {[%clk 0:02:23]} 17. Bxe5 {[%clk 0:02:46]}  Bxg2 {[%clk 0:02:01]} 18. Kxg2 {[%clk 0:02:43]}  b4 {[%clk 0:02:01]} 19. Bxf6 {[%clk 0:02:42]}  Bxf6 {[%clk 0:02:00]} 20. Ne4 {[%clk 0:02:42]}  Be7 {[%clk 0:01:56]} 21. Rfc1 {[%clk 0:02:40]}  O-O {[%clk 0:01:55]} 22. Rc4 {[%clk 0:02:35]}  Rc7 {[%clk 0:01:43]} 23. Rac1 {[%clk 0:02:32]}  Rfc8 {[%clk 0:01:43]} 24. Qc2 {[%clk 0:02:27]}  Qb7 {[%clk 0:01:31]} 25. Kg1 {[%clk 0:02:25]}  f5 {[%clk 0:01:12]} 26. Nd2 {[%clk 0:02:23]}  Bd6 {[%clk 0:01:07]} 27. Nb3 {[%clk 0:02:20]}  Qd5 {[%clk 0:01:06]} 28. e4 {[%clk 0:02:17]}  fxe4 {[%clk 0:01:00]} 29. dxe4 {[%clk 0:02:15]}  Qg5 {[%clk 0:01:00]} 30. Qd2 {[%clk 0:02:07]}  Qxd2 {[%clk 0:00:55]} 31. Nxd2 {[%clk 0:02:07]}  Be7 {[%clk 0:00:44]} 32. e5 {[%clk 0:02:05]}  Rd8 {[%clk 0:00:40]} 33. Ne4 {[%clk 0:02:05]}  Rd3 {[%clk 0:00:40]} 34. Rxb4 {[%clk 0:01:59]}  Rd1+ {[%clk 0:00:27]} 35. Rxd1 {[%clk 0:01:57]}  cxb4 {[%clk 0:00:27]} 36. Nd6 {[%clk 0:01:36]}  Rc2 {[%clk 0:00:27]} 37. b3 {[%clk 0:01:24]}  Rc3 {[%clk 0:00:27]} 38. Ra1 {[%clk 0:01:19]}  Rxb3 {[%clk 0:00:25]} 39. Ra8+ {[%clk 0:01:18]}  Bf8 {[%clk 0:00:25]} 40. Rb8 {[%clk 0:01:08]}  Rb1+ {[%clk 0:00:23]} 41. Kg2 {[%clk 0:01:08]}  b3 {[%clk 0:00:24]} 42. f4 {[%clk 0:01:07]}  h6 {[%clk 0:00:23]} 43. f5 {[%clk 0:00:58]}  exf5 {[%clk 0:00:21]} 44. e6 {[%clk 0:00:57]}  Re1 {[%clk 0:00:21]} 45. Nxf5 {[%clk 0:00:52]}  Re2+ {[%clk 0:00:20]} 46. Kf3 {[%clk 0:00:50]}  Rxe6 {[%clk 0:00:21]} 47. Rxb3 {[%clk 0:00:50]}  Rf6 {[%clk 0:00:21]} 48. Ke4 {[%clk 0:00:49]}  g6 {[%clk 0:00:21]} 49. Ne3 {[%clk 0:00:49]}  Re6+ {[%clk 0:00:21]} 50. Kf3 {[%clk 0:00:49]}  h5 {[%clk 0:00:20]} 51. Rb7 {[%clk 0:00:48]}  Bh6 {[%clk 0:00:18]} 52. Nd5 {[%clk 0:00:47]}  Bg7 {[%clk 0:00:18]} 53. h4 {[%clk 0:00:46]}  Re5 {[%clk 0:00:16]} 54. Nf4 {[%clk 0:00:44]}  Kh7 {[%clk 0:00:16]} 55. Rd7 {[%clk 0:00:41]}  Kh6 {[%clk 0:00:15]} 56. Rd6 {[%clk 0:00:40]}  Rf5 {[%clk 0:00:10]} 57. Rxg6+ {[%clk 0:00:39]}  Kh7 {[%clk 0:00:10]} 58. Rg5 {[%clk 0:00:38]}  Rxg5 {[%clk 0:00:08]} 59. hxg5 {[%clk 0:00:39]}  Be5 {[%clk 0:00:07]} 60. Nxh5 {[%clk 0:00:39]}  Kg6 {[%clk 0:00:07]} 61. Kg4 {[%clk 0:00:39]}  Bc7 {[%clk 0:00:06]} 62. Nf4+ {[%clk 0:00:40]}  Kf7 {[%clk 0:00:05]} 63. Kf5 {[%clk 0:00:41]}  Ba5 {[%clk 0:00:04]} 64. Ne6 {[%clk 0:00:38]}  Bc3 {[%clk 0:00:04]} 65. g6+ {[%clk 0:00:37]}  Kg8 {[%clk 0:00:04]} 66. g4 {[%clk 0:00:37]}  Bb2 {[%clk 0:00:05]} 67. Nf4 {[%clk 0:00:30]}  Bc1 {[%clk 0:00:04]} 68. Nh5 {[%clk 0:00:30]}  Bb2 {[%clk 0:00:05]} 69. Nf6+ {[%clk 0:00:28]}  Kg7 {[%clk 0:00:05]} 70. Ne8+ {[%clk 0:00:29]}  Kg8 {[%clk 0:00:05]} 71. Nd6 {[%clk 0:00:28]}  Ba1 {[%clk 0:00:05]} 72. Nc4 {[%clk 0:00:28]}  Bc3 {[%clk 0:00:05]} 73. Ne5 {[%clk 0:00:28]}  Bb2 {[%clk 0:00:05]} 74. Kf6 {[%clk 0:00:27]}  Ba1 {[%clk 0:00:05]} 75. Ke6 {[%clk 0:00:27]}  Bc3 {[%clk 0:00:05]} 76. Nf3 {[%clk 0:00:27]}  Kg7 {[%clk 0:00:05]} 77. Nh4 {[%clk 0:00:27]}  Be1 {[%clk 0:00:05]} 78. Nf5+ {[%clk 0:00:24]}  Kxg6 {[%clk 0:00:05]} 79. g5 {[%clk 0:00:24]}  Kxg5 {[%clk 0:00:05]} 1/2-1/2


[Site "https://www.chess.com"]

[Event "Titled Tuesday Blitz June 22 2021"]
[White "Maung, Maung Kyaw Zaw Hein"]
[Black "Iskusnyh, Sergei"]
[WhiteFideId "13001698"]
[BlackFideId "4120027"]
[WhiteElo "1785"]
[BlackElo "2492"]
[Result "0-1"]
[Round "05"]
[TimeControl "180+1"]
[Date "2021.06.22"]
[WhiteClock "0:00:27"]
[BlackClock "0:00:17"]

1. Nf3 {[%clk 0:03:00]}  d5 {[%clk 0:02:55]} 2. d4 {[%clk 0:03:00]}  Nf6 {[%clk 0:02:55]} 3. c4 {[%clk 0:03:00]}  c6 {[%clk 0:02:52]} 4. Nc3 {[%clk 0:03:00]}  a6 {[%clk 0:02:51]} 5. cxd5 {[%clk 0:02:58]}  cxd5 {[%clk 0:02:51]} 6. Bf4 {[%clk 0:02:58]}  Nc6 {[%clk 0:02:50]} 7. e3 {[%clk 0:02:58]}  Bg4 {[%clk 0:02:50]} 8. Be2 {[%clk 0:02:58]}  e6 {[%clk 0:02:49]} 9. O-O {[%clk 0:02:58]}  Bd6 {[%clk 0:02:48]} 10. Bg3 {[%clk 0:02:58]}  O-O {[%clk 0:02:47]} 11. Rc1 {[%clk 0:02:58]}  Bxg3 {[%clk 0:02:42]} 12. hxg3 {[%clk 0:02:58]}  Rc8 {[%clk 0:02:24]} 13. a3 {[%clk 0:02:57]}  Qe7 {[%clk 0:02:18]} 14. Na4 {[%clk 0:02:45]}  Ne4 {[%clk 0:02:15]} 15. Nc5 {[%clk 0:02:44]}  Nxc5 {[%clk 0:02:14]} 16. Rxc5 {[%clk 0:02:44]}  Bxf3 {[%clk 0:01:38]} 17. gxf3 {[%clk 0:02:37]}  Na7 {[%clk 0:01:36]} 18. b4 {[%clk 0:02:26]}  b6 {[%clk 0:01:35]} 19. Rxc8 {[%clk 0:02:22]}  Rxc8 {[%clk 0:01:36]} 20. Bxa6 {[%clk 0:02:16]}  Rc3 {[%clk 0:01:36]} 21. Qa4 {[%clk 0:01:59]}  g6 {[%clk 0:01:31]} 22. Be2 {[%clk 0:01:39]}  Kg7 {[%clk 0:01:26]} 23. Qa6 {[%clk 0:01:39]}  Qc7 {[%clk 0:01:24]} 24. Re1 {[%clk 0:01:38]}  Nc6 {[%clk 0:01:08]} 25. Bb5 {[%clk 0:01:32]}  Ne7 {[%clk 0:01:07]} 26. Kg2 {[%clk 0:01:28]}  Nf5 {[%clk 0:01:02]} 27. Bd3 {[%clk 0:01:19]}  Nd6 {[%clk 0:00:51]} 28. a4 {[%clk 0:01:19]}  Ra3 {[%clk 0:00:49]} 29. a5 {[%clk 0:00:42]}  bxa5 {[%clk 0:00:49]} 30. b5 {[%clk 0:00:42]}  Rxd3 {[%clk 0:00:43]} 31. b6 {[%clk 0:00:42]}  Qc4 {[%clk 0:00:43]} 32. Qxa5 {[%clk 0:00:41]}  Rb3 {[%clk 0:00:39]} 33. Qa7 {[%clk 0:00:34]}  Qc6 {[%clk 0:00:37]} 34. Rh1 {[%clk 0:00:31]}  Qxb6 {[%clk 0:00:29]} 35. Qe7 {[%clk 0:00:29]}  Nf5 {[%clk 0:00:18]} 36. g4 {[%clk 0:00:27]}  Nxe7 {[%clk 0:00:17]} 0-1


[Site "https://www.chess.com"]

[Event "Titled Tuesday Blitz June 22 2021"]
[White "Mekhitarian, Krikor Sevag"]
[Black "Padmini, Rout"]
[WhiteFideId "2107660"]
[BlackFideId "5029295"]
[WhiteElo "2598"]
[BlackElo "2196"]
[Result "1/2-1/2"]
[Round "05"]
[TimeControl "180+1"]
[Date "2021.06.22"]
[WhiteClock "0:00:02"]
[BlackClock "0:00:14"]

1. e4 {[%clk 0:03:00]}  c5 {[%clk 0:02:59]} 2. Nf3 {[%clk 0:03:00]}  e6 {[%clk 0:02:57]} 3. d4 {[%clk 0:02:59]}  cxd4 {[%clk 0:02:58]} 4. Nxd4 {[%clk 0:02:59]}  Nc6 {[%clk 0:02:59]} 5. Nc3 {[%clk 0:02:53]}  Qc7 {[%clk 0:02:58]} 6. g3 {[%clk 0:02:40]}  a6 {[%clk 0:02:57]} 7. Bg2 {[%clk 0:02:39]}  Nf6 {[%clk 0:02:46]} 8. O-O {[%clk 0:02:34]}  Nxd4 {[%clk 0:02:46]} 9. Qxd4 {[%clk 0:02:34]}  Bc5 {[%clk 0:02:46]} 10. Bf4 {[%clk 0:02:29]}  d6 {[%clk 0:02:46]} 11. Qd3 {[%clk 0:02:26]}  h6 {[%clk 0:02:00]} 12. Na4 {[%clk 0:02:21]}  e5 {[%clk 0:01:58]} 13. Nxc5 {[%clk 0:02:20]}  dxc5 {[%clk 0:01:56]} 14. Be3 {[%clk 0:02:19]}  O-O {[%clk 0:01:20]} 15. h3 {[%clk 0:01:39]}  b5 {[%clk 0:01:12]} 16. Qc3 {[%clk 0:01:31]}  c4 {[%clk 0:01:09]} 17. Rfd1 {[%clk 0:01:23]}  Bb7 {[%clk 0:01:09]} 18. f3 {[%clk 0:01:23]}  Nh5 {[%clk 0:00:56]} 19. Bf2 {[%clk 0:01:12]}  f5 {[%clk 0:00:45]} 20. exf5 {[%clk 0:01:05]}  Rxf5 {[%clk 0:00:46]} 21. Qe3 {[%clk 0:00:21]}  Raf8 {[%clk 0:00:41]} 22. g4 {[%clk 0:00:21]}  Rxf3 {[%clk 0:00:41]} 23. Bxf3 {[%clk 0:00:21]}  Rxf3 {[%clk 0:00:42]} 24. Qb6 {[%clk 0:00:21]}  Qf7 {[%clk 0:00:28]} 25. gxh5 {[%clk 0:00:17]}  Rxh3 {[%clk 0:00:28]} 26. Kf1 {[%clk 0:00:09]}  Rh1+ {[%clk 0:00:27]} 27. Ke2 {[%clk 0:00:09]}  Qf3+ {[%clk 0:00:24]} 28. Kd2 {[%clk 0:00:09]}  c3+ {[%clk 0:00:22]} 29. bxc3 {[%clk 0:00:08]}  Qd5+ {[%clk 0:00:19]} 30. Bd4 {[%clk 0:00:04]}  exd4 {[%clk 0:00:15]} 31. Rxh1 {[%clk 0:00:03]}  dxc3+ {[%clk 0:00:15]} 32. Kxc3 {[%clk 0:00:03]}  Qc4+ {[%clk 0:00:14]} 33. Kb2 {[%clk 0:00:02]}  Qb4+ {[%clk 0:00:14]} 34. Kc1 {[%clk 0:00:03]}  Qf4+ {[%clk 0:00:14]} 35. Kb1 {[%clk 0:00:03]}  Qb4+ {[%clk 0:00:14]} 36. Kc1 {[%clk 0:00:03]}  Qf4+ {[%clk 0:00:14]} 37. Kb2 {[%clk 0:00:02]}  Qb4+ {[%clk 0:00:14]} 38. Kc1 {[%clk 0:00:02]} 1/2-1/2


[Site "https://www.chess.com"]